[Event "Serbian League 2024"]
[Site "Bajina Basta"]
[Date "2024.09.28"]
[Round "2.2"]
[White "Vignesh N R"]
[Black "Markus, Robert"]
[Result "1/2-1/2"]
[ECO "C02"]
[WhiteElo "2511"]
[BlackElo "2586"]
[Annotator "TA"]
[PlyCount "45"]
[EventDate "2024.09.26"]
[EventType "team-tourn"]
[EventCountry "SRB"]
[SourceTitle "playchess.com"]
[Source "ChessBase"]
[SourceQuality "1"]
[TimeControl "40/5400+30:1800+30"]

{[%evp 14,45,16,15,29,14,26,26,23,23,25,8,38,29,40,41,37,41,48,39,45,52,54,27,16,15,22,16,74,0,0,-12,-18,-11]} 1. e4 {[%emt 0:00:14]} e6 {[%emt 0:00:08]} 2. d4 {[%emt 0:00:08]} d5 {[%emt 0:00:06]} 3. e5 {[%emt 0:00:09]} c5 {[%emt 0:00:06]} 4. c3 {[%emt 0:00:04]} Nc6 {[%emt 0:00:09]} 5. Nf3 {[%emt 0:00:05]} Bd7 {[%emt 0:00:09]} 6. Be2 {[%emt 0:00:09]} Nge7 {[%emt 0:00:08]} 7. O-O {[%emt 0:01:41]} Ng6 {[%emt 0:00:18]} 8. Be3 {[%emt 0:01:09]} Be7 {[%emt 0:00:22]} 9. Nbd2 {[%emt 0:00:11]} O-O {[%emt 0:00:11]} 10. a3 {[%emt 0:00:05]} cxd4 {[%emt 0:01:18] White has an edge.} 11. cxd4 {[%emt 0:00:07]} f6 {[%emt 0:00:06]} 12. exf6 {[%emt 0:00:16]} Rxf6 {[%emt 0:00:07]} 13. Re1 {[%emt 0:03:20]} a6 {[%emt 0:06:49]} 14. Rc1 {[%emt 0:00:20]} h6 {[%emt 0:01:26]} 15. Nb3 {[%emt 0:07:39]} b6 {[%emt 0:13:11]} 16. Bd3 {[%emt 0:00:16]} Bd6 {[%emt 0:03:52]} 17. Rc3 {[%emt 0:07:09]} Nce7 {[%emt 0:07:13]} 18. Nbd2 {[%emt 0:14:42][%cal Bb3d2,Bd2f1,Bf1g3][%mdl 32]} Nf5 {[%emt 0:06:42]} 19. Nf1 {[%emt 0:03:00]} b5 {[%emt 0:07:55]} 20. Bd2 {[%emt 0:12:41]} Qb6 {[%emt 0:04:58]} (20... Ngh4 $11 {remains equal.}) 21. Bxf5 {[%emt 0:02:41]} (21. Ne5 $16 Bxe5 22. dxe5) 21... Rxf5 $11 {[%emt 0:05:37]} 22. Ng3 {[%emt 0:06:53]} Rf7 {[%emt 0:08:05]} 23. Rce3 {[%emt 0:05:44] Weighted Error Value: White=0.11 (very precise) /Black=0.10 (very precise) .  Mistake:       	White=1     	Black=1      Inaccurate:     	White=1     	Black=1      OK:         	White=8     	Black=7} 1/2-1/2

[Event "Serbian League 2024"]
[Site "Bajina Basta"]
[Date "2024.09.28"]
[Round "2.4"]
[White "Spasic, Petar"]
[Black "Ivanisevic, Ivan"]
[Result "0-1"]
[ECO "A27"]
[WhiteElo "2304"]
[BlackElo "2519"]
[Annotator "RC"]
[PlyCount "92"]
[EventDate "2024.09.26"]
[EventType "team-tourn"]
[EventCountry "SRB"]
[SourceTitle "playchess.com"]
[Source "ChessBase"]
[SourceQuality "1"]
[TimeControl "40/5400+30:1800+30"]

1. c4 {[%emt 0:02:38]} e5 {[%emt 0:00:04]} 2. Nc3 {[%emt 0:00:05]} Nc6 {[%emt 0:00:06]} 3. g3 {[%emt 0:00:07]} f5 {[%emt 0:00:05]} 4. Nf3 {[%emt 0:00:15]} Nf6 {[%emt 0:01:18]} 5. d4 {[%emt 0:01:46]} e4 {[%emt 0:00:38]} 6. Nh4 {[%emt 0:01:08]} d5 {[%emt 0:00:21]} 7. Bg5 {[%emt 0:00:40]} Bb4 {[%emt 0:00:09]} 8. e3 {[%emt 0:00:32]} O-O {[%emt 0:00:08]} 9. Qb3 {[%emt 0:04:04]} Be6 {[%emt 0:03:57]} 10. a3 {[%emt 0:13:34]} dxc4 {[%emt 0:06:04]} 11. Bxc4 {[%emt 0:01:18]} Bxc3+ {[%emt 0:00:05]} 12. Qxc3 {[%emt 0:01:13]} Bxc4 {[%emt 0:02:26]} 13. Qxc4+ {[%emt 0:01:42]} Qd5 {[%emt 0:00:08]} 14. Rc1 {[%emt 0:01:00]} Qxc4 {[%emt 0:02:05]} 15. Rxc4 {[%emt 0:00:35]} Ne8 {[%emt 0:03:35]} 16. Bf4 {[%emt 0:24:37]} Rd8 {[%emt 0:03:30]} 17. Rc5 {[%emt 0:01:53]} g6 {[%emt 0:00:43]} 18. Rg1 {[%emt 0:00:52]} Nf6 {[%emt 0:03:15]} 19. Bxc7 {[%emt 0:07:56]} Rc8 {[%emt 0:00:40]} 20. Bf4 {[%emt 0:00:55]} b6 {[%emt 0:00:41]} 21. Rc2 {[%emt 0:02:58]} Nb4 {[%emt 0:08:28]} 22. Rc3 {[%emt 0:02:34]} Nd3+ {[%emt 0:03:41]} 23. Ke2 {[%emt 0:02:09]} Rxc3 {[%emt 0:01:23]} 24. bxc3 {[%emt 0:00:07]} Rc8 {[%emt 0:00:02]} 25. Kd2 {[%emt 0:01:51]} Nd5 {[%emt 0:05:53]} 26. Rb1 {[%emt 0:03:02]} a6 {[%emt 0:10:35]} 27. Ng2 {[%emt 0:06:37]} Rxc3 {[%emt 0:03:26]} 28. Bd6 {[%emt 0:04:32]} Rc6 {[%emt 0:01:46]} 29. Be5 {[%emt 0:00:04]} b5 {[%emt 0:03:05]} 30. Nf4 {[%emt 0:01:31]} N3xf4 {[%emt 0:01:41]} 31. gxf4 {[%emt 0:02:04]} Kf7 {[%emt 0:00:24]} 32. Bb8 {[%emt 0:02:05]} Ke6 {[%emt 0:01:42]} 33. Ba7 {[%emt 0:00:08]} Rc4 {[%emt 0:01:17]} 34. Bc5 {[%emt 0:01:04]} Nf6 {[%emt 0:00:36]} 35. h3 {[%emt 0:01:32]} Kd5 {[%emt 0:01:16]} 36. Rb3 {[%emt 0:01:44]} Kc6 {[%emt 0:03:05]} 37. Be7 {[%emt 0:00:31]} Nd5 {[%emt 0:00:12]} 38. Bd8 {[%emt 0:00:05]} Ra4 {[%emt 0:00:34]} 39. Bg5 {[%emt 0:00:59]} a5 {[%emt 0:02:11]} 40. Bd8 {[%emt 0:03:58]} b4 {[%emt 0:01:06]} 41. axb4 {[%emt 0:30:35]} Ra2+ {[%emt 0:30:27]} 42. Kc1 {[%emt 0:00:04]} axb4 {[%emt 0:02:01]} 43. Rb2 {[%emt 0:00:05]} Ra1+ {[%emt 0:00:42]} 44. Kd2 {[%emt 0:00:37]} Kb5 {[%emt 0:00:51]} 45. Rc2 {[%emt 0:00:31]} Nc3 {[%emt 0:00:28]} 46. Rxc3 {[%emt 0:01:12]} Ra2+ {[%emt 0:01:54]} 0-1

[Event "Serbian League 2024"]
[Site "Bajina Basta"]
[Date "2024.09.28"]
[Round "2.5"]
[White "Kosic, Dragan"]
[Black "Jovanovic, Dusan D"]
[Result "1-0"]
[ECO "E14"]
[WhiteElo "2371"]
[BlackElo "2372"]
[Annotator "ChessBase"]
[PlyCount "39"]
[EventDate "2024.09.26"]
[EventType "team-tourn"]
[EventCountry "SRB"]
[SourceTitle "playchess.com"]
[Source "ChessBase"]
[SourceQuality "1"]
[TimeControl "40/5400+30:1800+30"]

1. d4 {[%emt 0:02:03]} Nf6 {[%emt 0:00:21]} 2. Nf3 {[%emt 0:00:06]} e6 {[%emt 0:00:19]} 3. e3 {[%emt 0:00:12]} b6 {[%emt 0:01:16]} 4. Bd3 {[%emt 0:01:21]} Bb7 {[%emt 0:00:12]} 5. O-O {[%emt 0:00:06]} c5 {[%emt 0:00:39]} 6. b3 {[%emt 0:00:42]} Be7 {[%emt 0:00:31]} 7. Bb2 {[%emt 0:00:09]} O-O {[%emt 0:00:29]} 8. c4 {[%emt 0:01:03]} cxd4 {[%emt 0:01:14]} 9. Nxd4 {[%emt 0:01:50]} d6 {[%emt 0:01:20]} 10. Nc3 {[%emt 0:01:05]} Nbd7 {[%emt 0:00:20]} 11. Rc1 {[%emt 0:00:25]} a6 {[%emt 0:00:42]} 12. Qe2 {[%emt 0:01:30]} Re8 {[%emt 0:00:39]} 13. Rfd1 {[%emt 0:01:12]} Bf8 {[%emt 0:02:58]} 14. Bb1 {[%emt 0:00:23]} Rc8 {[%emt 0:00:22]} 15. Nf3 {[%emt 0:01:08]} Qc7 {[%emt 0:00:33]} 16. Ng5 {[%emt 0:00:29]} h6 {[%emt 0:08:41]} 17. Nge4 {[%emt 0:01:59]} Nxe4 {[%emt 0:12:35]} 18. Nxe4 {[%emt 0:01:23]} Nc5 {[%emt 0:06:55]} 19. Nf6+ {[%emt 0:01:04]} Kh8 {[%emt 0:03:18]} 20. Qc2 {[%emt 0:00:49]} 1-0

[Event "Serbian League 2024"]
[Site "Bajina Basta"]
[Date "2024.09.28"]
[Round "2.6"]
[White "Pavlovic, Goran"]
[Black "Miljkovic, Miroslav D"]
[Result "1/2-1/2"]
[ECO "D13"]
[WhiteElo "2337"]
[BlackElo "2420"]
[Annotator "ChessBase"]
[PlyCount "83"]
[EventDate "2024.09.26"]
[EventType "team-tourn"]
[EventCountry "SRB"]
[SourceTitle "playchess.com"]
[Source "ChessBase"]
[SourceQuality "1"]
[TimeControl "40/5400+30:1800+30"]

1. c4 {[%emt 0:00:03]} c6 {[%emt 0:01:25]} 2. d4 {[%emt 0:03:10]} d5 {[%emt 0:00:10]} 3. cxd5 {[%emt 0:00:31]} cxd5 {[%emt 0:00:07]} 4. Nc3 {[%emt 0:00:05]} Nf6 {[%emt 0:00:49]} 5. Nf3 {[%emt 0:01:43]} Nc6 {[%emt 0:00:11]} 6. Bf4 {[%emt 0:00:06]} Nh5 {[%emt 0:01:26]} 7. Bd2 {[%emt 0:01:24]} Nf6 {[%emt 0:00:40]} 8. Bf4 {[%emt 0:00:09]} a6 {[%emt 0:03:11]} 9. e3 {[%emt 0:00:13]} Bf5 {[%emt 0:03:11]} 10. Bd3 {[%emt 0:03:08]} Bxd3 {[%emt 0:00:16]} 11. Qxd3 {[%emt 0:00:10]} e6 {[%emt 0:01:01]} 12. O-O {[%emt 0:00:54]} Be7 {[%emt 0:02:43]} 13. Rac1 {[%emt 0:01:30]} Rc8 {[%emt 0:05:25]} 14. Ne5 {[%emt 0:03:19]} O-O {[%emt 0:11:01]} 15. Nxc6 {[%emt 0:08:28]} Rxc6 {[%emt 0:00:07]} 16. Ne2 {[%emt 0:01:00]} Qb6 {[%emt 0:07:55]} 17. Rxc6 {[%emt 0:02:28]} bxc6 {[%emt 0:00:06]} 18. b3 {[%emt 0:02:57]} Nd7 {[%emt 0:02:36]} 19. Nc3 {[%emt 0:03:27]} c5 {[%emt 0:17:35]} 20. Na4 {[%emt 0:05:10]} Qb5 {[%emt 0:15:38]} 21. Qxb5 {[%emt 0:01:26]} axb5 {[%emt 0:00:01]} 22. Nxc5 {[%emt 0:00:13]} Nxc5 {[%emt 0:00:18]} 23. dxc5 {[%emt 0:00:11]} Bxc5 {[%emt 0:00:03]} 24. Rc1 {[%emt 0:00:12]} Ba3 {[%emt 0:04:00]} 25. Rc6 {[%emt 0:00:52]} Re8 {[%emt 0:03:11]} 26. Bd6 {[%emt 0:00:28]} Bxd6 {[%emt 0:05:33]} 27. Rxd6 {[%emt 0:00:09]} g5 {[%emt 0:05:26]} 28. Rb6 {[%emt 0:00:27]} Ra8 {[%emt 0:00:30]} 29. Rxb5 {[%emt 0:00:24]} Rxa2 {[%emt 0:00:01]} 30. g4 {[%emt 0:00:16]} h6 {[%emt 0:02:56]} 31. Kg2 {[%emt 0:00:50]} Rb2 {[%emt 0:00:26]} 32. Rb7 {[%emt 0:00:14]} Kg7 {[%emt 0:00:49]} 33. h3 {[%emt 0:00:23]} Kg6 {[%emt 0:01:40]} 34. Kg3 {[%emt 0:01:12]} f6 {[%emt 0:03:30]} 35. Re7 {[%emt 0:01:10]} e5 {[%emt 0:00:48]} 36. Rd7 {[%emt 0:00:09]} d4 {[%emt 0:01:10]} 37. exd4 {[%emt 0:01:08]} Rxb3+ {[%emt 0:00:04]} 38. Kg2 {[%emt 0:00:20]} Rd3 {[%emt 0:02:32]} 39. d5 {[%emt 0:00:08]} h5 {[%emt 0:00:42]} 40. Kh2 {[%emt 0:00:26]} Rd2 {[%emt 0:00:36]} 41. Kg2 {[%emt 0:30:22]} Rd3 {[%emt 0:07:15]} 42. Kh2 {[%emt 0:00:00]} 1/2-1/2

[Event "Serbian League 2024"]
[Site "Bajina Basta"]
[Date "2024.09.28"]
[Round "2.7"]
[White "Tarhan, Adar"]
[Black "Andreikin, Dmitry"]
[Result "1/2-1/2"]
[ECO "D13"]
[WhiteElo "2474"]
[BlackElo "2729"]
[Annotator "TA"]
[PlyCount "82"]
[EventDate "2024.09.26"]
[EventType "team-tourn"]
[EventCountry "SRB"]
[SourceTitle "playchess.com"]
[Source "ChessBase"]
[SourceQuality "1"]
[TimeControl "40/5400+30:1800+30"]

{[%evp 15,82,5,11,0,-1,-10,0,0,-1,0,-5,-10,0,-9,-11,-18,-25,-23,-22,-22,-13,-4,0,-8,0,0,0,0,0,0,0,0,0,0,0,-6,0,-10,0,0,0,-7,0,0,0,0,0,0,0,0,0,0,0,0,0,0,0,0,0,0,0,0,0,0,0,0,0,-6,0]} 1. d4 {[%emt 0:00:03]} d5 {[%emt 0:00:39]} 2. Nf3 {[%emt 0:00:18]} Nf6 {[%emt 0:00:27]} 3. c4 {[%emt 0:00:27]} c6 {[%emt 0:00:18]} 4. Nc3 {[%emt 0:01:27]} a6 {[%emt 0:00:06]} 5. cxd5 {[%emt 0:02:53]} cxd5 {[%emt 0:00:25]} 6. Bf4 {[%emt 0:00:05]} Nc6 {[%emt 0:00:11]} 7. e3 {[%emt 0:00:32]} Bg4 {[%emt 0:01:01]} 8. Be2 {[%emt 0:02:45]} e6 {[%emt 0:00:34]} 9. Ne5 {[%emt 0:00:56]} Nxe5 {[%emt 0:03:23]} 10. Bxe5 {[%emt 0:00:07]} Bxe2 {[%emt 0:00:13]} 11. Qxe2 {[%emt 0:00:40]} Nd7 {[%emt 0:00:27]} 12. Bg3 {[%emt 0:01:41]} Bb4 {[%emt 0:00:54]} 13. O-O {[%emt 0:00:11]} O-O {[%emt 0:00:22]} 14. Rac1 {[%emt 0:03:12]} Rc8 {[%emt 0:00:25]} 15. Nb1 {[%emt 0:00:37]} Qa5 {[%emt 0:00:47]} 16. a3 {[%emt 0:01:39]} Be7 {[%emt 0:01:12]} 17. Rc2 {[%emt 0:00:39] The position is equal.} Rxc2 {[%emt 0:23:00]} 18. Qxc2 {[%emt 0:00:04]} h5 {[%emt 0:05:32]} 19. Rc1 {[%emt 0:10:15]} h4 {[%emt 0:00:11]} 20. Bf4 {[%emt 0:00:03]} Nb6 {[%emt 1:00:23]} 21. Bc7 {[%emt 0:00:36]} Rc8 {[%emt 0:00:00]} 22. Qd1 $1 {[%emt 0:00:06]} Qb5 {[%emt 0:00:00]} 23. Bxb6 {[%emt 0:00:23]} Rxc1 {[%emt 0:00:00]} 24. Qxc1 {[%emt 0:00:03]} Qxb6 $11 {[%emt 0:00:00][%mdl 4096] Endgame. KQB-KQN} 25. Nd2 {[%emt 0:06:10]} Qb5 {[%emt 0:00:00]} 26. h3 {[%emt 0:02:30]} Qd3 {[%emt 0:00:00]} 27. Qc8+ {[%emt 0:01:58]} Bf8 {[%emt 0:00:00]} 28. Qc1 {[%emt 0:10:05]} b5 {[%emt 0:00:00]} 29. Nf3 {[%emt 0:00:48]} Qc4 {[%emt 0:00:00]} 30. Qd1 {[%emt 0:00:02]} Be7 {[%emt 0:00:00]} 31. Ne5 {[%emt 0:00:44]} Qc7 {[%emt 0:00:00]} 32. Kf1 {[%emt 0:03:20]} Bd6 {[%emt 0:00:00]} 33. Nf3 {[%emt 0:00:21]} Qc4+ {[%emt 0:00:00]} 34. Kg1 {[%emt 0:00:13]} Be7 {[%emt 0:00:00]} 35. Ne5 {[%emt 0:00:03]} Qc7 {[%emt 0:00:00]} 36. Kf1 {[%emt 0:00:09]} g6 {[%emt 0:00:06]} 37. Ke2 {[%emt 0:01:35]} Kg7 {[%emt 0:01:22]} 38. Kd2 {[%emt 0:01:14]} Qa5+ {[%emt 0:00:25]} 39. Ke2 {[%emt 0:01:45]} Qc7 {[%emt 0:00:06]} 40. Kd2 {[%emt 0:00:04]} Bd6 {[%emt 0:04:00]} 41. Nd3 {[%emt 0:31:10]} Be7 {[%emt 0:09:59] A balanced but interesting game.   Weighted Error Value: White=0.02 (flawless) /Black=0.01 (flawless) .  OK:         	White=16    	Black=16     Best:        	---       	Black=1      Strong:       	White=1     	---} 1/2-1/2

[Event "Serbian League 2024"]
[Site "Bajina Basta"]
[Date "2024.09.28"]
[Round "2.8"]
[White "Matlakov, Maxim"]
[Black "Celik, Hasan Huseyin"]
[Result "1/2-1/2"]
[ECO "D02"]
[WhiteElo "2636"]
[BlackElo "2425"]
[Annotator "TA"]
[PlyCount "52"]
[EventDate "2024.09.26"]
[EventType "team-tourn"]
[EventCountry "SRB"]
[SourceTitle "playchess.com"]
[Source "ChessBase"]
[SourceQuality "1"]
[TimeControl "40/5400+30:1800+30"]

{[%evp 9,52,27,29,37,29,21,34,9,33,22,31,0,21,18,21,11,14,0,0,0,0,0,13,10,6,22,19,0,0,0,0,0,0,0,0,0,0,0,0,0,0,0,0,0,0]} 1. Nf3 {[%emt 0:01:19]} d5 {[%emt 0:00:29]} 2. g3 {[%emt 0:00:13]} Nd7 {[%emt 0:00:28]} 3. d4 {[%emt 0:00:18]} Nb6 {[%emt 0:00:07]} 4. Nc3 {[%emt 0:00:17]} Nf6 {[%emt 0:00:15]} 5. Bg2 {[%emt 0:02:05]} h6 {[%emt 0:00:33]} 6. Qd3 {[%emt 0:12:53]} g6 {[%emt 0:13:55]} 7. Nh4 {[%emt 0:12:58] Prevents Bf5} Bg7 {[%emt 0:02:30][%cal Of6e4]} 8. a4 {[%emt 0:01:29] And now a5 would win. White is slightly better.} a5 {[%emt 0:01:47]} 9. O-O {[%emt 0:00:16]} O-O {[%emt 0:00:15]} 10. Rd1 {[%emt 0:00:42]} Be6 {[%emt 0:14:02] The position is equal.} 11. b3 {[%emt 0:04:24]} c6 {[%emt 0:03:22]} 12. Ba3 {[%emt 0:07:38]} Re8 {[%emt 0:00:56]} 13. e4 {[%emt 0:16:11]} dxe4 {[%emt 0:00:38]} 14. Nxe4 {[%emt 0:00:06]} Nxe4 {[%emt 0:02:57]} 15. Bxe4 {[%emt 0:00:33]} Bd5 {[%emt 0:01:00]} 16. c4 {[%emt 0:00:34]} Bxe4 {[%emt 0:00:10]} 17. Qxe4 {[%emt 0:00:02]} Qc7 {[%emt 0:06:18]} 18. f4 {[%emt 0:06:18]} e6 {[%emt 0:05:58]} 19. Ra2 {[%emt 0:08:06]} Rad8 {[%emt 0:02:01][%cal Oe6e5]} 20. Rad2 {[%emt 0:00:09]} Nd7 {[%emt 0:02:56][%cal Bb6d7,Bd7f6,Bf6e4][%mdl 32]} 21. Nf3 {[%emt 0:08:26]} f5 {[%emt 0:10:58]} 22. Qe3 {[%emt 0:01:36]} Nf6 {[%emt 0:00:29]} 23. Rd3 {[%emt 0:00:13]} Ne4 {[%emt 0:01:19]} 24. Nd2 {[%emt 0:03:58]} Nf6 {[%emt 0:01:39] [#] ...Ng4 would now be deadly.} 25. Nf3 {[%emt 0:03:04]} Ne4 {[%emt 0:01:01]} 26. Nd2 {[%emt 0:00:19]} Nf6 {[%emt 0:00:23] Weighted Error Value: White=0.06 (flawless) /Black=0.03 (flawless) .  Inaccurate:     	White=1     	---        OK:         	White=3     	Black=12     Best:        	---       	Black=1} 1/2-1/2

[Event "Serbian League 2024"]
[Site "Bajina Basta"]
[Date "2024.09.28"]
[Round "2.9"]
[White "Kovacevic, Aleksandar"]
[Black "Stojanovic, Mihajlo"]
[Result "1/2-1/2"]
[ECO "C13"]
[WhiteElo "2479"]
[BlackElo "2424"]
[Annotator "RC"]
[PlyCount "104"]
[EventDate "2024.09.26"]
[EventType "team-tourn"]
[EventCountry "SRB"]
[SourceTitle "playchess.com"]
[Source "ChessBase"]
[SourceQuality "1"]
[TimeControl "40/5400+30:1800+30"]

1. e4 {[%emt 0:00:15]} e6 {[%emt 0:00:06]} 2. d4 {[%emt 0:00:11]} d5 {[%emt 0:00:04]} 3. Nc3 {[%emt 0:00:26]} Nf6 {[%emt 0:01:30]} 4. Bg5 {[%emt 0:00:25]} dxe4 {[%emt 0:00:17]} 5. Nxe4 {[%emt 0:00:11]} Nbd7 {[%emt 0:00:06]} 6. Nf3 {[%emt 0:00:36]} h6 {[%emt 0:00:09]} 7. Bxf6 {[%emt 0:01:17]} Nxf6 {[%emt 0:00:05]} 8. Bd3 {[%emt 0:00:21]} Nxe4 {[%emt 0:00:09]} 9. Bxe4 {[%emt 0:00:13]} c5 {[%emt 0:00:05]} 10. Qe2 {[%emt 0:00:49]} Qa5+ {[%emt 0:00:04]} 11. c3 {[%emt 0:00:20]} cxd4 {[%emt 0:00:07]} 12. Nxd4 {[%emt 0:00:23]} Be7 {[%emt 0:00:04]} 13. Nc6 {[%emt 0:01:02]} Qc7 {[%emt 0:00:07]} 14. Nxe7 {[%emt 0:00:19]} Kxe7 {[%emt 0:00:04]} 15. O-O-O {[%emt 0:02:23]} Bd7 {[%emt 0:00:06]} 16. Rd4 {[%emt 0:03:23]} Rhd8 {[%emt 0:00:29]} 17. Rhd1 {[%emt 0:01:29]} Bc6 {[%emt 0:03:25]} 18. Bxc6 {[%emt 0:05:58]} Qxc6 {[%emt 0:03:46]} 19. Qg4 {[%emt 0:06:16]} Rxd4 {[%emt 0:03:54]} 20. Rxd4 {[%emt 0:00:29]} Kf8 {[%emt 0:03:26]} 21. Rd3 {[%emt 0:09:50]} Qc7 {[%emt 0:19:05]} 22. Qb4+ {[%emt 0:04:14]} Kg8 {[%emt 0:01:21]} 23. Rd6 {[%emt 0:02:56]} Re8 {[%emt 0:13:11]} 24. g3 {[%emt 0:03:17]} Re7 {[%emt 0:15:20]} 25. Qd4 {[%emt 0:03:01]} b5 {[%emt 0:08:02]} 26. a3 {[%emt 0:10:32]} Qb7 {[%emt 0:05:27]} 27. Rd8+ {[%emt 0:03:52]} Kh7 {[%emt 0:00:04]} 28. Qd3+ {[%emt 0:00:13]} f5 {[%emt 0:01:29]} 29. Qd6 {[%emt 0:00:24]} Kg6 {[%emt 0:15:14]} 30. h4 {[%emt 0:12:51]} Qc7 {[%emt 0:02:38]} 31. Kd2 {[%emt 0:06:16]} Qxd6+ {[%emt 0:03:59]} 32. Rxd6 {[%emt 0:00:02]} Kh5 {[%emt 0:00:08]} 33. Ke3 {[%emt 0:00:51]} g5 {[%emt 0:00:13]} 34. hxg5 {[%emt 0:00:45]} hxg5 {[%emt 0:00:02]} 35. Rd8 {[%emt 0:05:46]} Kg4 {[%emt 0:02:49]} 36. Rg8 {[%emt 0:01:55]} e5 {[%emt 0:00:47]} 37. f3+ {[%emt 0:04:10]} Kh5 {[%emt 0:00:01]} 38. g4+ {[%emt 0:04:38]} fxg4 {[%emt 0:00:02]} 39. Rh8+ {[%emt 0:00:04]} Kg6 {[%emt 0:00:05]} 40. fxg4 {[%emt 0:00:05]} Rc7 {[%emt 0:00:14]} 41. Rg8+ {[%emt 0:09:30]} Kf6 {[%emt 0:00:03]} 42. Rf8+ {[%emt 0:00:11]} Ke6 {[%emt 0:03:10]} 43. Rf5 {[%emt 0:04:54]} a5 {[%emt 0:00:07]} 44. Rxg5 {[%emt 0:08:07]} b4 {[%emt 0:00:07]} 45. axb4 {[%emt 0:02:05]} axb4 {[%emt 0:00:03]} 46. Kd3 {[%emt 0:03:01]} bxc3 {[%emt 0:01:50]} 47. bxc3 {[%emt 0:00:11]} Rc8 {[%emt 0:09:22]} 48. Rh5 {[%emt 0:08:19]} Rg8 {[%emt 0:05:30]} 49. Rh6+ {[%emt 0:00:28]} Kd5 {[%emt 0:02:21]} 50. c4+ {[%emt 0:00:54]} Kc5 {[%emt 0:00:08]} 51. Rh5 {[%emt 0:01:04]} Rxg4 {[%emt 0:00:30]} 52. Rxe5+ {[%emt 0:00:03]} Kc6 {[%emt 0:00:17]} 1/2-1/2

[Event "Serbian League 2024"]
[Site "Bajina Basta"]
[Date "2024.09.28"]
[Round "2.10"]
[White "Nestorovic, Nikola"]
[Black "Brenjo, Slavisa"]
[Result "1/2-1/2"]
[ECO "C55"]
[WhiteElo "2458"]
[BlackElo "2376"]
[Annotator "RC"]
[PlyCount "75"]
[EventDate "2024.09.26"]
[EventType "team-tourn"]
[EventCountry "SRB"]
[SourceTitle "playchess.com"]
[Source "ChessBase"]
[SourceQuality "1"]
[TimeControl "40/5400+30:1800+30"]

1. e4 {[%emt 0:00:05]} e5 {[%emt 0:00:41]} 2. Nf3 {[%emt 0:00:09]} Nc6 {[%emt 0:00:14]} 3. Bc4 {[%emt 0:00:11]} Nf6 {[%emt 0:00:39]} 4. d3 {[%emt 0:00:07]} Be7 {[%emt 0:09:08]} 5. O-O {[%emt 0:00:20]} O-O {[%emt 0:00:29]} 6. Nc3 {[%emt 0:00:49]} d6 {[%emt 0:02:59]} 7. a4 {[%emt 0:00:08]} a6 {[%emt 0:03:18]} 8. Bd2 {[%emt 0:03:32]} Bg4 {[%emt 0:05:02]} 9. h3 {[%emt 0:00:07]} Bh5 {[%emt 0:01:34]} 10. Be3 {[%emt 0:05:51]} Qd7 {[%emt 0:03:40]} 11. Nd5 {[%emt 0:04:37]} Nxd5 {[%emt 0:09:29]} 12. Bxd5 {[%emt 0:00:11]} Bg6 {[%emt 0:02:51]} 13. g4 {[%emt 0:24:36]} Nd8 {[%emt 0:01:25]} 14. Kh1 {[%emt 0:00:04]} c6 {[%emt 0:01:09]} 15. Ba2 {[%emt 0:00:03]} Ne6 {[%emt 0:03:59]} 16. Rg1 {[%emt 0:00:41]} Qd8 {[%emt 0:08:02]} 17. Qf1 {[%emt 0:09:45]} h6 {[%emt 0:04:18]} 18. Qg2 {[%emt 0:01:55]} Kh8 {[%emt 0:05:34]} 19. Qh2 {[%emt 0:05:04]} Ng5 {[%emt 0:08:16]} 20. Nxg5 {[%emt 0:14:05]} Bxg5 {[%emt 0:00:41]} 21. Bxg5 {[%emt 0:06:46]} Qe7 {[%emt 0:27:32]} 22. Bf6 Qxf6 {[%emt 0:00:00]} 23. h4 {[%emt 0:00:32]} Qe7 {[%emt 0:00:00]} 24. Rg3 {[%emt 0:04:57]} Rad8 {[%emt 0:00:00]} 25. Rag1 {[%emt 0:00:15]} Bh7 {[%emt 0:00:00]} 26. g5 {[%emt 0:04:44]} f5 {[%emt 0:00:00]} 27. gxh6 {[%emt 0:09:10]} gxh6 {[%emt 0:00:00]} 28. f3 {[%emt 0:00:05]} fxe4 {[%emt 0:00:00]} 29. fxe4 {[%emt 0:00:02]} Rf4 {[%emt 0:00:00]} 30. Rg4 {[%emt 0:00:08]} Rdf8 {[%emt 0:00:00]} 31. Qh3 {[%emt 0:00:25]} Qf6 {[%emt 0:00:00]} 32. Bb3 {[%emt 0:03:09]} a5 {[%emt 0:00:00]} 33. Kh2 {[%emt 0:00:46]} Rf2+ {[%emt 0:01:12]} 34. R4g2 {[%emt 0:01:16]} Rf3 {[%emt 0:01:36]} 35. Rg3 {[%emt 0:00:13]} Rf4 {[%emt 0:01:21]} 36. Rg4 {[%emt 0:00:05]} Rf3 {[%emt 0:00:46]} 37. R4g3 {[%emt 0:00:04]} Rf4 {[%emt 0:00:40]} 38. Rg4 {[%emt 0:00:01]} 1/2-1/2

[Event "Serbian League 2024"]
[Site "Bajina Basta"]
[Date "2024.09.28"]
[Round "2.11"]
[White "Omorjan, Dejan"]
[Black "Todorovic, Goran M"]
[Result "1/2-1/2"]
[ECO "D06"]
[WhiteElo "2299"]
[BlackElo "2289"]
[Annotator "ChessBase"]
[PlyCount "30"]
[EventDate "2024.09.26"]
[EventType "team-tourn"]
[EventCountry "SRB"]
[SourceTitle "playchess.com"]
[Source "ChessBase"]
[SourceQuality "1"]
[TimeControl "40/5400+30:1800+30"]

1. d4 {[%emt 0:00:02]} d5 {[%emt 0:00:13]} 2. Nf3 {[%emt 0:00:09]} c5 {[%emt 0:00:23]} 3. c4 {[%emt 0:00:11]} cxd4 {[%emt 0:02:32]} 4. cxd5 {[%emt 0:00:36]} Qxd5 {[%emt 0:00:56]} 5. Nc3 {[%emt 0:01:09]} Qa5 {[%emt 0:00:08]} 6. Nxd4 {[%emt 0:00:46]} Nf6 {[%emt 0:00:14]} 7. g3 {[%emt 0:05:38]} e5 {[%emt 0:00:11]} 8. Nb3 {[%emt 0:01:43]} Qc7 {[%emt 0:00:11]} 9. Bg2 {[%emt 0:00:47]} Bb4 {[%emt 0:00:11]} 10. O-O {[%emt 0:01:44]} Bxc3 {[%emt 0:01:01]} 11. bxc3 {[%emt 0:01:17]} O-O {[%emt 0:00:14]} 12. Bg5 {[%emt 0:21:10]} Nbd7 {[%emt 0:04:45]} 13. Qd3 {[%emt 0:10:34]} h6 {[%emt 0:02:03]} 14. Be3 {[%emt 0:03:07]} Nb6 {[%emt 0:05:28]} 15. Rfd1 {[%emt 0:08:13]} Bg4 {[%emt 0:03:22]} 1/2-1/2